fUSD/lending_fUSD_20241031
["ID","MTS","AMOUNT","RATE_DAILY","PERIOD"]
[341088668,1730361081584,-1513.24,0.00050684,120]
[341088669,1730361081593,-1513.24,0.00050684,120]
[341088670,1730361081602,-1513.24,0.00050684,120]
[341088671,1730361081611,-1513.24,0.00050684,120]
[341088672,1730361081620,-1513.24,0.00050684,120]
[341088673,1730361081630,-1513.24,0.00050684,120]
[341088674,1730361081639,-1513.24,0.00050684,120]
[341088675,1730361081649,-1513.24,0.00050684,120]
[341088676,1730361081658,-500.0,0.00050684,120]
[341088677,1730361081667,-500.0,0.00050684,120]
[341088678,1730361081677,-1513.24,0.00050684,120]
[341088679,1730361081687,-500.0,0.00050684,120]
[341088680,1730361081696,-1513.24,0.00050684,120]
[341088681,1730361081706,-500.0,0.00050684,120]
[341088682,1730361081716,-1513.24,0.00050684,120]
[341088683,1730361081725,-500.0,0.00050684,120]
[341088684,1730361081735,-1513.3,0.00050684,120]
[341088685,1730361081745,-500.0,0.00050684,120]
[341088686,1730361081754,-500.0,0.00050684,120]
[341088687,1730361081764,-196.56839511,0.00050684,120]
[341088688,1730361081775,-445.00001219,0.00050684,120]
[341088689,1730361081784,-500.0,0.00050684,120]
[341088690,1730361081793,-500.0,0.00050684,120]
[341088691,1730361081802,-179.4,0.00050684,120]
[341088692,1730361081811,-194.66243754,0.00050684,120]
[341088693,1730361081820,-500.0,0.00050684,120]
[341088694,1730361081830,-209.33489694,0.00050684,120]
[341088695,1730361081839,-500.0,0.00050684,120]
[341088696,1730361081848,-500.0,0.00050684,120]
[341088697,1730361081858,-500.0,0.00050684,120]
[341088698,1730361081868,-500.0,0.00050684,120]
[341088699,1730361081878,-500.0,0.00050684,120]
[341088700,1730361081888,-500.0,0.00050684,120]
[341088701,1730361081897,-500.0,0.00050684,120]
[341088702,1730361081907,-500.0,0.00050684,120]
[341088703,1730361081917,-500.0,0.00050684,120]
[341088704,1730361081926,-444.89064812,0.00050684,120]
[341088705,1730361081936,-500.0,0.00050684,120]
[341088706,1730361081948,-500.0,0.00050684,120]
[341088707,1730361081957,-500.0,0.00050684,120]
[341088708,1730361081967,-500.0,0.00050684,120]
[341088709,1730361081978,-187.70971706,0.00050684,120]
[341088710,1730361081988,-500.0,0.00050684,120]
[341088711,1730361081998,-500.0,0.00050684,120]
[341088712,1730361082010,-500.0,0.00050684,120]
[341088713,1730361082022,-500.0,0.00050684,120]
[341088714,1730361082032,-4005.82,0.00050684,120]
[341088715,1730361082044,-500.0,0.00050684,120]
[341088716,1730361082054,-4005.82,0.00050684,120]
[341088717,1730361082064,-500.0,0.00050684,120]
[341088718,1730361082077,-4005.82,0.00050684,120]
[341088719,1730361082087,-557.1166455,0.00050684,120]
[341088720,1730361082097,-4005.82,0.00050684,120]
[341088721,1730361082109,-4005.82,0.00050684,120]
[341088722,1730361082119,-500.0,0.00050684,120]
[341088723,1730361082130,-4005.82,0.00050684,120]
[341088724,1730361082141,-500.0,0.00050684,120]
[341088725,1730361082151,-500.0,0.00050684,120]
[341088726,1730361082161,-4005.82,0.00050684,120]
[341088727,1730361082171,-174.75,0.00050684,120]
[341088728,1730361082181,-500.0,0.00050684,120]
[341088729,1730361082191,-4005.82,0.00050684,120]
[341088730,1730361082200,-4005.82,0.00050684,120]
[341088731,1730361082210,-500.0,0.00050684,120]
[341088732,1730361082219,-4005.82,0.00050684,120]
[341088733,1730361082228,-500.0,0.00050684,120]
[341088734,1730361082237,-4005.82,0.00050684,120]
[341088735,1730361082246,-500.0,0.00050684,120]
[341088736,1730361082255,-4005.82,0.00050684,120]
[341088737,1730361082265,-4005.82,0.00050684,120]
[341088738,1730361082277,-500.0,0.00050684,120]
[341088739,1730361082286,-4005.82,0.00050684,120]
[341088740,1730361082295,-500.0,0.00050684,120]
[341088741,1730361082305,-4005.82,0.00050684,120]
[341088742,1730361082314,-500.0,0.00050684,120]
[341088743,1730361082323,-4005.82,0.00050684,120]
[341088744,1730361082333,-500.0,0.00050684,120]
[341088745,1730361082343,-4005.82,0.00050684,120]
[341088746,1730361082353,-500.0,0.00050684,120]
[341088747,1730361082364,-4005.82,0.00050684,120]
[341088748,1730361082374,-500.0,0.00050684,120]
[341088749,1730361082384,-4005.82,0.00050684,120]
[341088750,1730361082394,-500.0,0.00050684,120]
[341088751,1730361082404,-4005.82,0.00050684,120]
[341088752,1730361082414,-500.0,0.00050684,120]
[341088753,1730361082424,-4005.82,0.00050684,120]
[341088754,1730361082433,-382.35428552,0.00050684,120]
[341088755,1730361082443,-4005.82,0.00050684,120]
[341088756,1730361082453,-4005.82,0.00050684,120]
[341088757,1730361082463,-150.14239294,0.00050684,120]
[341088758,1730361082472,-4005.87135735,0.00050684,120]
[341088759,1730361082482,-1111.0,0.00050684,120]
[341088760,1730361082491,-505.18772353,0.00050684,120]
[341088761,1730361082500,-500.0,0.00050684,120]
[341088762,1730361082510,-500.0,0.00050684,120]
[341088763,1730361082519,-535.19071341,0.00050684,120]
[341088764,1730361082531,-157.27430104,0.00050684,120]
[341088765,1730361082540,-500.0,0.00050684,120]
[341088766,1730361082550,-604.62,0.00050684,120]
[341088767,1730361082559,-604.62,0.00050684,120]
[341088768,1730361082568,-604.62,0.00050684,120]
[341088769,1730361082578,-604.62,0.00050684,120]
[341088770,1730361082587,-604.62,0.00050684,120]
[341088771,1730361082598,-500.0,0.00050684,120]
[341088772,1730361082607,-604.62,0.00050684,120]
[341088773,1730361082616,-500.0,0.00050684,120]
[341088774,1730361082625,-604.62,0.00050684,120]
[341088775,1730361082635,-500.0,0.00050684,120]
[341088776,1730361082644,-604.62,0.00050684,120]
[341088777,1730361082654,-500.0,0.00050684,120]
[341088778,1730361082664,-500.0,0.00050684,120]
[341088779,1730361082674,-604.62,0.00050684,120]
[341088780,1730361082683,-500.0,0.00050684,120]
[341088781,1730361082692,-153.77997597,0.00050684,120]
[341088782,1730361082702,-569.82308109,0.00050684,120]
[341088783,1730361082711,-604.62,0.00050684,120]
[341088784,1730361082720,-500.0,0.00050684,120]
[341088785,1730361082730,-5294.02,0.00050684,120]
[341088786,1730361082739,-604.62,0.00050684,120]
[341088787,1730361082750,-500.0,0.00050684,120]
[341088788,1730361082760,-5294.02,0.00050684,120]
[341088789,1730361082770,-604.62,0.00050684,120]
[341088790,1730361082781,-500.0,0.00050684,120]
[341088791,1730361082791,-500.0,0.00050684,120]
[341088792,1730361082800,-5294.02,0.00050684,120]
[341088793,1730361082810,-604.62,0.00050684,120]
[341088794,1730361082820,-500.0,0.00050684,120]
[341088795,1730361082829,-5294.02,0.00050684,120]
[341088796,1730361082838,-604.62,0.00050684,120]
[341088797,1730361082848,-500.0,0.00050684,120]
[341088798,1730361082857,-500.0,0.00050684,120]
[341088799,1730361082867,-5294.02,0.00050684,120]
[341088800,1730361082877,-604.62,0.00050684,120]
[341088801,1730361082887,-488.64885157,0.00050684,120]
[341088802,1730361082897,-5294.02,0.00050684,120]
[341088803,1730361082906,-604.62,0.00050684,120]
[341088804,1730361082915,-5294.02,0.00050684,120]
[341088805,1730361082924,-604.62,0.00050684,120]
[341088806,1730361082933,-604.62,0.00050684,120]
[341088807,1730361082942,-5294.02,0.00050684,120]
[341088808,1730361082951,-604.62,0.00050684,120]
[341088809,1730361082961,-5294.02,0.00050684,120]
[341088810,1730361082970,-604.62,0.00050684,120]
[341088811,1730361082980,-5294.02,0.00050684,120]
[341088812,1730361082989,-604.62,0.00050684,120]
[341088813,1730361082998,-5294.02,0.00050684,120]
[341088814,1730361083100,-5294.02,0.00050684,120]
[341088815,1730361083112,-604.62,0.00050684,120]
[341088816,1730361083123,-604.62,0.00050684,120]
[341088817,1730361083133,-5294.02,0.00050684,120]
[341088818,1730361083142,-5294.02,0.00050684,120]
[341088819,1730361083153,-604.83,0.00050684,120]
[341088820,1730361083162,-5294.02,0.00050684,120]
[341088821,1730361083173,-5294.02,0.00050684,120]
[341088822,1730361083183,-500.0,0.00050684,120]
[341088823,1730361083193,-5294.02,0.00050684,120]
[341088824,1730361083203,-500.0,0.00050684,120]
[341088825,1730361083214,-500.0,0.00050684,120]
[341088826,1730361083224,-500.0,0.00050684,120]
[341088827,1730361083234,-150.0,0.00050684,120]
[341088828,1730361083244,-500.0,0.00050684,120]
[341088829,1730361083253,-500.0,0.00050684,120]
[341088830,1730361083263,-5294.02,0.00050684,120]
[341088831,1730361083275,-500.0,0.00050684,120]
[341088832,1730361083284,-500.0,0.00050684,120]
[341088833,1730361083295,-5294.02,0.00050684,120]
[341088834,1730361083305,-500.0,0.00050684,120]
[341088835,1730361083315,-269.71,0.00050684,120]
[341088836,1730361083326,-5294.02,0.00050684,120]
[341088837,1730361083336,-577.39791017,0.00050684,120]
[341088838,1730361083346,-500.0,0.00050684,120]
[341088839,1730361083357,-5294.02,0.00050684,120]
[341088840,1730361083367,-5294.02,0.00050684,120]
[341088841,1730361083377,-5294.02,0.00050684,120]
[341088842,1730361083387,-500.0,0.00050684,120]
[341088843,1730361083396,-5294.0616,0.00050684,120]
[341088844,1730361083406,-500.0,0.00050684,120]
[341088845,1730361083416,-784.09,0.00050684,120]
[341088846,1730361083425,-500.0,0.00050684,120]
[341088847,1730361083434,-784.09,0.00050684,120]
[341088848,1730361083444,-500.0,0.00050684,120]
[341088849,1730361083456,-296.57190689,0.00050684,120]
[341088850,1730361083465,-500.0,0.00050684,120]
[341088851,1730361083475,-784.09,0.00050684,120]
[341088852,1730361083484,-784.09,0.00050684,120]
[341088853,1730361083493,-515.80657934,0.00050684,120]
[341088854,1730361083503,-784.09,0.00050684,120]
[341088855,1730361083512,-784.09,0.00050684,120]
[341088856,1730361083523,-784.09,0.00050684,120]
[341088857,1730361083533,-784.09,0.00050684,120]
[341088858,1730361083543,-784.09,0.00050684,120]
[341088859,1730361083552,-784.09,0.00050684,120]
[341088860,1730361083562,-784.09,0.00050684,120]
[341088861,1730361083572,-784.09,0.00050684,120]
[341088862,1730361083581,-784.09,0.00050684,120]
[341088863,1730361083590,-784.09,0.00050684,120]
[341088864,1730361083599,-784.09,0.00050684,120]
[341088865,1730361083609,-500.0,0.00050684,120]
[341088866,1730361083618,-784.09,0.00050684,120]
[341088867,1730361083627,-755.0,0.00050684,120]
[341088868,1730361083636,-500.0,0.00050684,120]
[341088869,1730361083645,-500.0,0.00050684,120]
[341088870,1730361083654,-784.09,0.00050684,120]
[341088871,1730361083665,-365.12,0.00050684,120]
[341088872,1730361083675,-520.05818305,0.00050684,120]
[341088873,1730361083685,-784.09,0.00050684,120]
[341088874,1730361083696,-784.09,0.00050684,120]
[341088875,1730361083706,-784.09,0.00050684,120]
[341088876,1730361083716,-500.0,0.00050684,120]
[341088877,1730361083726,-784.09,0.00050684,120]
[341088878,1730361083736,-422.92856543,0.00050684,120]
[341088879,1730361083746,-784.09,0.00050684,120]
[341088880,1730361083756,-2416.79,0.00050684,120]
[341088881,1730361083766,-784.09,0.00050684,120]
[341088882,1730361083776,-2416.79,0.00050684,120]
[341088883,1730361083787,-784.21563703,0.00050684,120]
[341088884,1730361083797,-500.0,0.00050684,120]
[341088885,1730361083808,-2416.79,0.00050684,120]
[341088886,1730361083817,-2416.79,0.00050684,120]
[341088887,1730361083828,-500.0,0.00050684,120]
[341088888,1730361083838,-2416.79,0.00050684,120]
[341088889,1730361083848,-2416.79,0.00050684,120]
[341088890,1730361083858,-2416.79,0.00050684,120]
[341088891,1730361083868,-2416.79,0.00050684,120]
[341088892,1730361083878,-2416.79,0.00050684,120]
[341088893,1730361083890,-297.28439251,0.00050684,2]
[341088894,1730361083902,-6251.0,0.00050795,3]
[341088895,1730361083915,-26100.0545436,0.00050865,2]
[341088896,1730361083926,-11212.078539,0.00050865,2]
[341088897,1730361083935,-209.80085633,0.000509,120]
[341088898,1730361083946,-212552.9643,0.000509,30]
[341088899,1730361083958,-358317.74708,0.000509,30]
[341088900,1730361083969,-1647.5,0.00050903,120]
[341088901,1730361083979,-1111.0,0.00050958,120]
[341088902,1730361083990,-500.0,0.00050958,120]
[341088903,1730361084002,-500.0,0.00050958,120]
[341088904,1730361084011,-154.59512636,0.00050958,120]
[341088905,1730361084021,-500.0,0.00050958,120]
[341088906,1730361084030,-500.0,0.00050958,120]
[341088907,1730361084040,-755.0,0.00050958,120]
[341088908,1730361084050,-150.0,0.0005096,30]
[341088909,1730361084060,-157.616,0.00050966,30]
[341088910,1730361084070,-57098.31127658,0.00051,5]
[341088911,1730361084080,-1017.0,0.00051,20]
[341088912,1730361084090,-459.0,0.00051,20]
[341088913,1730361084104,-5000.0,0.00051,120]
[341088914,1730361084115,-150.31939933,0.00051,14]
[341088915,1730361084126,-5043.40722866,0.00051,4]
[341088916,1730361084139,-150.0,0.00051,120]
[341088917,1730361084150,-22377.14,0.00051,90]
[341088918,1730361084162,-2902.0,0.00051037,120]
[341088919,1730361084173,-17499.9999993,0.0005123,30]
[341088920,1730361084182,-1111.0,0.00051232,120]
[341088921,1730361084192,-961.27580989,0.00051232,120]
[341088922,1730361084202,-500.0,0.00051232,120]
[341088923,1730361084212,-762.52217653,0.00051232,120]
[341088924,1730361084222,-500.0,0.00051232,120]
[341088925,1730361084233,-755.0,0.00051232,120]
[341088926,1730361084244,-247.103114,0.00051498,120]
[341088927,1730361084255,-494.44569291,0.000515,2]
[341088928,1730361084265,-1111.0,0.00051506,120]
[341088929,1730361084275,-500.0,0.00051506,120]
[341088930,1730361084285,-500.0,0.00051506,120]
[341088931,1730361084294,-755.0,0.00051506,120]
[341088932,1730361084305,-1647.5,0.00051588,120]
[341088933,1730361084315,-800.0,0.000516,18]
[341088934,1730361084324,-430.18,0.000516,30]
[341088935,1730361084333,-650.26,0.000516,60]
[341088936,1730361084342,-800.0,0.000517,18]
[341088937,1730361084353,-1111.0,0.0005178,120]
[341088938,1730361084363,-500.0,0.0005178,120]
[341088939,1730361084372,-500.0,0.0005178,120]
[341088940,1730361084382,-755.0,0.0005178,120]
[341088941,1730361084391,-2896.71802471,0.000518,120]
[341088942,1730361084400,-800.0,0.000518,18]
[341088943,1730361084409,-87061.98802898,0.000518,2]
[341088945,1730361084419,-2296.5944812,0.000519,5]
[341088946,1730361084428,-1207.0,0.000519,18]
[341088947,1730361084440,-1452.03,0.000519,75]
[341088948,1730361084451,-270.35916621,0.000519,31]
[341088949,1730361084460,-1857.85,0.000519,14]
[341088950,1730361084470,-250.0,0.000519,30]
[341088951,1730361084479,-12318.68620697,0.000519,15]
[341088952,1730361084489,-185.69583597,0.000519,46]
[341088953,1730361084498,-456.58546638,0.000519,2]
[341088954,1730361084509,-14073.71978508,0.000519,2]
[341088955,1730361084519,-163.75079097,0.000519,120]
[341088956,1730361084530,-20259.0464027,0.00051964,2]
[341088957,1730361084539,-14418.0382618,0.00051964,2]
[341088958,1730361084549,-8577.0301209,0.00051964,2]
[341088959,1730361084559,-2736.02198,0.00051964,2]
[341088960,1730361084569,-8705.270603,0.00051964,2]
[341088961,1730361084579,-6198.462667,0.00051964,2]
[341088962,1730361084588,-3691.654731,0.00051964,2]
[341088963,1730361084600,-1184.8467949,0.00051964,2]
[341088964,1730361084610,-40000.0,0.0005198,120]
[341088965,1730361084619,-351.45305561,0.00051983,120]
[341088966,1730361084629,-11066.33551047,0.00051997,34]
[341088967,1730361084639,-6567.45863398,0.00051997,120]
[341088968,1730361084648,-1589.2101201,0.00051999,120]
[341088969,1730361084658,-5000.0,0.00051999,7]
[341088970,1730361084667,-13009.8295503,0.00051999,2]
[341088971,1730361084676,-700.61370216,0.00052,120]
[341088972,1730361084685,-10970127.16102792,0.00052,120]
[341088973,1730361084992,-500.0,0.00050684,120]
[341088974,1730361085119,-1.90740232,0.00050684,120]
[341088975,1730361085211,142.33,0.00017605,2]
[341088976,1730361085236,7.67,0.00017605,2]
[341088977,1730361085326,-170.124,0.00039605,2]
[341088978,1730361085335,-93.87600001,0.00050684,120]
[341088979,1730361085357,-591.53522493,0.0003063,2]
[341088980,1730361085376,-3234.54437507,0.0003063,2]
[341088981,1730361085386,-1310.14406264,0.00050684,120]
[341088982,1730361086834,157.09,0.00015342,2]
[341088983,1730361121366,300.0,0.00019725,2]
[341088984,1730361603216,200.0,0.00013699,2]
[341088985,1730361603237,600.0,0.00013699,2]
[341088986,1730361663022,800.0,0.00013699,2]
[341088987,1730361722772,800.0,0.00013699,2]
[341089013,1730361758921,157.77,0.00015342,2]
[341089035,1730361783435,800.0,0.00015342,2]
[341089036,1730361843140,800.0,0.00015342,2]
[341089037,1730361853312,150.0,0.00015265,15]
[341089038,1730361884084,3297.9468729,0.0001,2]
[341089039,1730361905567,800.0,0.00015342,2]
[341089040,1730361963569,800.0,0.00015342,2]
[341089041,1730362024072,800.0,0.00015342,2]
[341089050,1730362086468,800.0,0.00015342,2]
[341089069,1730362145997,800.0,0.00015342,2]
[341089367,1730362193490,-246.0,0.000231,2]
[341089368,1730362202676,800.0,0.00023096,2]
[341089369,1730362222626,-200.0,0.00024658,2]
[341089370,1730362222652,-131.0,0.00024658,2]
[341089379,1730362232206,-69.0,0.00024658,2]
[341089380,1730362232216,-200.0,0.00024658,2]
[341089381,1730362232228,-500.0,0.00024932,2]
[341089382,1730362232238,-500.0,0.00024932,2]
[341089383,1730362232248,-500.0,0.00024932,2]
[341089384,1730362232259,-316.76254015,0.00024932,2]
[341089385,1730362232273,-183.23745985,0.00024932,2]
[341089386,1730362232283,-500.0,0.00024932,2]
[341089387,1730362232293,-500.0,0.00024932,2]
[341089388,1730362232303,-500.0,0.00024932,2]
[341089389,1730362232314,-940.87269061,0.00024932,2]
[341089390,1730362232327,-305.15560127,0.00026986,120]
[341089391,1730362232345,-494.84439873,0.00026986,120]
[341089392,1730362232358,-305.22493869,0.00027,60]
[341089393,1730362232421,-707.08053716,0.00027,60]
[341089394,1730362232430,-204.97469275,0.00027,60]
[341089395,1730362232439,-1019.74276316,0.00029,2]
[341089396,1730362232450,-1814.14723684,0.00029,2]
[341089397,1730362232459,-299.99,0.00029,12]
[341089398,1730362232468,-1109.16,0.00029,2]
[341089399,1730362232477,-150.0,0.00029,27]
[341089400,1730362232486,-157.193675,0.00029,27]
[341089401,1730362232496,-1837.93,0.00029,2]
[341089402,1730362232505,-172.49,0.00029,2]
[341089403,1730362232514,-185.2,0.0002955,2]
[341089404,1730362232523,-388.52,0.00029594,2]
[341089405,1730362232532,-305.26,0.0002969,2]
[341089406,1730362232542,-150.0,0.00029992,7]
[341089407,1730362232551,-209.367,0.0003,2]
[341089408,1730362232559,-151.0,0.0003,120]
[341089409,1730362232569,-151.0,0.0003,120]
[341089410,1730362232578,-461.346,0.0003,2]
[341089411,1730362232587,-277.95075,0.0003,2]
[341089412,1730362232597,-250.0,0.00030447,2]
[341089413,1730362232606,-162.03,0.00030543,30]
[341089414,1730362232615,-2084.6728,0.0003063,2]
[341089415,1730362232624,-274.1560973,0.0003063,2]
[341089416,1730362232638,-827.5623889,0.0003063,2]
[341089417,1730362232650,-809.2979138,0.0003063,2]
[341089418,1730362232658,-1427.49667308,0.0003063,2]
[341089420,1730362238348,-500.0,0.0003,120]
[341089421,1730362238358,-203.4801664,0.0003063,2]
[341089422,1730362238508,-8749.03949863,0.0003063,2]
[341089423,1730362238520,-757.258615,0.0003063,2]
[341089424,1730362238563,-28017.24924689,0.0003063,2]
[341089425,1730362238572,-2099.0537,0.0003063,2]
[341089426,1730362238582,-1000.0,0.0003063,2]
[341089427,1730362238591,-262.7751,0.0003063,2]
[341089428,1730362238600,-295.44387084,0.0003063,2]
[341089429,1730362238611,-1014.26609025,0.0003063,2]
[341089430,1730362238633,-583.95805767,0.0003063,2]
[341089465,1730362240570,-550.44,0.0003063,2]
[341089520,1730362241196,150.0,0.00017605,2]
[341089735,1730362243369,-2500.0,0.0003063,2]
[341089737,1730362243379,-155.06,0.0003064,2]
[341089739,1730362243388,-308.88563974,0.00030666,2]
[341089741,1730362243399,-230.59,0.0003072,2]
[341089743,1730362243408,-230.59,0.0003072,2]
[341089745,1730362243418,-230.59,0.0003072,2]
[341089746,1730362243428,-500.0,0.00030729,2]
[341089748,1730362243437,-180.28948286,0.00030729,2]
[341089751,1730362243448,-290.7618386,0.00030729,2]
[341089752,1730362243459,-10150.5449,0.0003073,2]
[341089753,1730362243468,-5040.4457388,0.0003073,2]
[341089761,1730362243582,-94959.5542612,0.0003073,2]
[341089763,1730362243592,-500.0,0.0003073,2]
[341089765,1730362243602,-245000.0,0.0003073,2]
[341089767,1730362243612,-1727.49,0.00030766,2]
[341089769,1730362243622,-277.95075,0.00031039,2]
[341089771,1730362243631,-461.346,0.00031312,2]
[341089773,1730362243641,-1097.71,0.00031512,2]
[341089775,1730362243651,-388.52,0.00031858,2]
[341089777,1730362243660,-500.0,0.00032,120]
[341089779,1730362243670,-230.59,0.0003201,2]
[341089781,1730362243680,-250.0,0.0003202,2]
[341089783,1730362243690,-23900.0,0.0003202,2]
[341089785,1730362243700,-459.14,0.00032852,2]
[341089787,1730362243712,-214.23662507,0.00032877,2]
[341089789,1730362243722,-150.0,0.00033,30]
[341089791,1730362243732,-150.0,0.00033,30]
[341089793,1730362243742,-150.0,0.00033,30]
[341089795,1730362243751,-150.0,0.00033,30]
[341089797,1730362243760,-150.0,0.00033,30]
[341089799,1730362243770,-187.306561,0.00033,30]
[341089801,1730362243780,-161.43305574,0.00033133,5]
[341089803,1730362243790,-500.0,0.00033133,2]
[341089805,1730362243799,-151.0,0.00033151,120]
[341089807,1730362243809,-500.0,0.00033348,2]
[341089809,1730362243819,-180.0,0.00033465,120]
[341089811,1730362243830,-156.96,0.00033557,2]
[341089813,1730362243840,-500.0,0.00034,120]
[341089815,1730362243850,-388.52,0.00034122,2]
[341089817,1730362243860,-999.0,0.00034849,120]
[341089819,1730362243870,-162.03,0.00035006,120]
[341089821,1730362243880,-763.65,0.00035404,120]
[341089823,1730362243890,-278.86,0.00035562,120]
[341089825,1730362243900,-301.09,0.00035616,2]
[341089827,1730362243910,-156.96,0.00035794,2]
[341089829,1730362243919,-950.35214093,0.00035973,15]
[341089831,1730362243929,-592.12644885,0.00036,120]
[341089833,1730362243939,-500.0,0.00036,120]
[341089835,1730362243948,-151.0,0.00036301,120]
[341089837,1730362243961,-524.898,0.00036326,44]
[341089839,1730362243971,-388.52,0.00036386,2]
[341089841,1730362243980,-162.50325174,0.00036822,2]
[341089842,1730362243990,-2824.4946543,0.00037,38]
[341089844,1730362243999,-645.91054144,0.000372,103]
[341089846,1730362244008,-645.91054144,0.000372,103]
[341089848,1730362244018,-2173.656,0.00037722,2]
[341089850,1730362244028,-230.59,0.0003779,2]
[341089852,1730362244038,-195.3,0.000378,31]
[341089854,1730362244047,-195.3,0.000378,31]
[341089856,1730362244057,-195.3,0.000378,31]
[341089858,1730362244068,-195.3,0.000378,31]
[341089861,1730362244078,-195.3,0.000378,31]
[341089862,1730362244088,-195.3,0.000378,31]
[341089864,1730362244098,-195.3,0.000378,31]
[341089866,1730362244110,-195.3,0.000378,31]
[341089868,1730362244120,-195.3,0.000378,31]
[341089870,1730362244130,-195.3,0.000378,31]
[341089872,1730362244140,-195.3,0.000378,31]
[341089874,1730362244151,-195.3,0.000378,31]
[341089877,1730362244161,-500.0,0.000378,13]
[341089878,1730362244172,-500.0,0.000378,13]
[341089880,1730362244184,-500.0,0.000378,13]
[341089881,1730362244194,-500.0,0.000378,13]
[341089883,1730362244206,-500.0,0.000378,13]
[341089884,1730362244215,-500.0,0.000378,13]
[341089886,1730362244225,-500.0,0.000378,13]
[341089888,1730362244235,-500.0,0.000378,13]
[341089889,1730362244245,-500.0,0.000378,13]
[341089891,1730362244254,-500.0,0.000378,13]
[341089893,1730362244264,-500.0,0.000378,13]
[341089894,1730362244273,-500.0,0.000378,13]
[341089896,1730362244283,-500.0,0.000378,13]
[341089897,1730362244292,-500.0,0.000378,13]
[341089899,1730362244302,-500.0,0.000378,13]
[341089901,1730362244311,-500.0,0.000378,13]
[341089902,1730362244320,-500.0,0.000378,13]
[341089904,1730362244329,-500.0,0.000378,13]
[341089906,1730362244338,-500.0,0.000378,13]
[341089907,1730362244348,-500.0,0.000378,13]
[341089909,1730362244357,-500.0,0.000378,13]
[341089910,1730362244366,-500.0,0.000378,13]
[341089912,1730362244376,-500.0,0.000378,13]
[341089914,1730362244385,-500.0,0.000378,13]
[341089916,1730362244394,-500.0,0.000378,13]
[341089917,1730362244403,-500.0,0.000378,13]
[341089919,1730362244413,-500.0,0.000378,13]
[341089921,1730362244422,-500.0,0.000378,13]
[341089922,1730362244433,-500.0,0.000378,13]
[341089924,1730362244442,-500.0,0.000378,13]
[341089925,1730362244455,-500.0,0.000378,13]
[341089927,1730362244469,-500.0,0.000378,13]
[341089929,1730362244481,-500.0,0.000378,13]
[341089931,1730362244491,-500.0,0.000378,13]
[341089933,1730362244502,-500.0,0.000378,13]
[341089934,1730362244511,-500.0,0.000378,13]
[341089936,1730362244520,-500.0,0.000378,13]
[341089937,1730362244530,-500.0,0.000378,13]
[341089939,1730362244539,-500.0,0.000378,13]
[341089941,1730362244548,-500.0,0.000378,13]
[341089942,1730362244558,-500.0,0.000378,13]
[341089944,1730362244567,-500.0,0.000378,13]
[341089946,1730362244576,-500.0,0.000378,13]
[341089947,1730362244586,-500.0,0.000378,13]
[341089949,1730362244596,-500.0,0.000378,13]